bitfinex/quotes_ETHUSD_20260202
["timestamp","ask_amount","ask_price","bid_price","bid_amount"]
[1770069225332,1.11347083,2346.2,2345.7,1.51149014]
[1770069226346,1.11347083,2346.2,2345.7,3.03487091]
[1770069226538,1.11347083,2346.2,2345.7,1.51149014]
[1770069226860,13.22748738,2346.2,2345.7,0.001]
[1770069227030,1.11347083,2346.2,2345.7,0.001]
[1770069228544,13.22748738,2346.2,2345.7,0.001]
[1770069229435,13.22748738,2346.2,2345.7,1.52438077]
[1770069230465,14.55023612,2346.2,2345.7,1.52438077]
[1770069231448,2.43621957,2346.2,2345.8,1.52338077]
[1770069231770,0.0011,2346.5,2346.0,1.52338077]
[1770069232082,1.11347083,2346.4,2346.1,1.52338077]
[1770069232531,0.0011,2346.5,2346.1,1.52338077]
[1770069232734,1.11457083,2346.5,2346.1,2.01079027]
[1770069232968,1.11457083,2346.5,2346.2,2.43763644]
[1770069233144,1.11457083,2346.5,2346.3,0.91425567]
[1770069233345,1.11457083,2346.5,2346.4,0.91425567]
[1770069233784,0.0011,2346.5,2346.4,0.91425567]
[1770069234088,0.0011,2346.7,2346.4,2.9099072]
[1770069234242,0.0011,2347.3,2346.6,1.52338077]
[1770069234442,1.11347083,2347.2,2346.7,2.43763644]
[1770069234642,1.11347083,2347.2,2346.8,0.91425567]
[1770069234842,1.11347083,2347.2,2346.9,0.91425567]
[1770069235047,1.11347083,2347.2,2347.0,0.91425567]
[1770069235248,1.11347083,2347.2,2347.1,0.91425567]
[1770069235491,15.51910637,2347.2,2346.6,1.52338077]
[1770069235779,1.11347083,2347.2,2346.6,1.52338077]
[1770069235949,1.11347083,2347.2,2346.7,1.52338077]
[1770069236976,1.11347083,2347.1,2346.7,1.52338077]
[1770069237181,1.11347083,2347.1,2346.6,1.52338077]
[1770069237582,1.11347083,2347.1,2346.7,1.52338077]
[1770069238416,1.06488467,2347.7,2346.7,1.52338077]
[1770069238417,12.99470769,2348.4,2346.9,14.29158783]
[1770069238586,12.99470769,2348.2,2347.4,1.51930404]
[1770069238998,14.10817852,2348.1,2347.4,1.51930404]
[1770069239196,1.41081785,2348.0,2347.4,1.51930404]
[1770069239597,1.41081785,2348.0,2347.3,1.53638346]
[1770069239801,1.11347083,2347.9,2347.4,1.51930404]
[1770069240215,1.11347083,2347.9,2347.3,1.53638346]
[1770069240620,14.10817852,2347.9,2347.1,1.51930404]
[1770069240929,0.25242887,2347.8,2347.1,1.51930404]
[1770069241228,0.25242887,2347.8,2347.0,1.51930404]
[1770069241229,13.24713656,2347.8,2347.0,1.51930404]
[1770069241443,12.99470769,2347.6,2346.8,1.51930404]
[1770069241632,1.41081785,2347.5,2346.8,1.51930404]
[1770069241948,2.52428868,2347.5,2346.8,1.51930404]
[1770069242138,2.52428868,2347.5,2346.7,1.53638346]
[1770069242328,15.51899637,2347.5,2346.6,1.51930404]
[1770069242551,15.51899637,2347.5,2346.6,1.53638346]
[1770069242729,0.89859567,2347.4,2346.7,1.51930404]
[1770069243245,0.89859567,2347.4,2346.6,0.01707942]
[1770069243246,1.11347083,2347.3,2346.6,2.60172053]
[1770069243428,1.11347083,2347.3,2346.7,2.5846224]
[1770069244241,1.11347083,2347.3,2346.7,1.51930404]
[1770069244448,1.11347083,2347.3,2346.6,2.60172127]
[1770069244746,1.11347083,2347.3,2346.6,4.83999951]
[1770069245812,15.17323477,2347.3,2346.6,1.51930404]
[1770069246017,15.17323477,2347.3,2346.2,1.51930404]
[1770069246630,15.17323477,2347.3,2346.0,2.41330404]
[1770069246835,15.17323477,2347.3,2346.0,3.49602424]
[1770069247037,12.99580769,2347.1,2346.0,3.41717218]
[1770069247243,12.99580769,2347.1,2346.0,4.48280861]
[1770069247445,1.11347083,2347.0,2346.2,1.06555092]
[1770069247644,1.11347083,2347.0,2346.3,0.91069034]
[1770069247926,1.73198004,2347.0,2346.4,0.91069034]
[1770069248241,1.73198004,2347.0,2346.5,0.91069034]
[1770069248415,1.73198004,2347.0,2346.2,1.06555081]
[1770069248623,14.10817852,2347.0,2346.3,0.91057009]
[1770069248963,14.10817852,2347.0,2346.4,0.91057009]
[1770069249254,14.10817852,2347.0,2346.0,4.4998633]
[1770069249458,14.10817852,2347.0,2346.1,0.91074677]
[1770069249624,1.41092785,2346.9,2346.2,0.91074677]
[1770069249823,1.41092785,2346.9,2346.3,0.91074677]
[1770069250076,1.41092785,2346.9,2346.4,0.91074677]
[1770069250271,1.41092785,2346.9,2346.1,0.96743488]
[1770069250451,1.41092785,2346.9,2346.2,0.91044786]
[1770069250649,1.41092785,2346.9,2346.3,0.91044786]
[1770069250822,1.41092785,2346.9,2346.4,0.91044786]
[1770069251155,1.41092785,2346.9,2346.0,4.4998633]
[1770069251156,2.26438537,2346.8,2346.0,3.41717218]
[1770069251341,1.11347083,2346.8,2346.1,0.9103148]
[1770069251544,1.11347083,2346.8,2346.2,0.9103148]
[1770069251848,1.11347083,2346.8,2346.3,0.9103148]
[1770069252044,1.11347083,2346.8,2346.4,0.9103148]
[1770069252351,1.11347083,2346.8,2346.0,4.48281181]
[1770069252545,1.11347083,2346.8,2346.1,1.78522874]
[1770069252723,1.11347083,2346.8,2346.2,0.91057229]
[1770069252925,1.11347083,2346.8,2346.3,0.91057229]
[1770069253249,1.11347083,2346.8,2346.4,0.91057229]
[1770069253457,1.11347083,2346.8,2346.1,0.87465645]
[1770069253662,1.11347083,2346.8,2346.2,1.34742772]
[1770069253831,1.11347083,2346.8,2346.3,0.91035977]
[1770069254157,1.11347083,2346.8,2346.4,0.91035977]
[1770069254455,1.11347083,2346.8,2346.2,0.43706795]
[1770069254635,1.11347083,2346.8,2346.3,0.91049987]
[1770069254833,1.11347083,2346.8,2346.4,0.91049987]
[1770069255146,1.11347083,2346.8,2346.2,0.43706795]
[1770069255451,1.11347083,2346.8,2346.3,0.91025625]
[1770069255452,2.52428868,2346.8,2346.3,0.91025625]
[1770069255652,15.51899637,2346.8,2346.0,1.51930404]
[1770069255854,15.51899637,2346.8,2345.9,0.001]
[1770069255855,12.99470769,2346.7,2345.9,0.001]
[1770069256359,14.10817852,2346.6,2345.9,0.001]
[1770069257176,14.0601126,2346.6,2345.6,1.52030404]
[1770069257343,14.0601126,2346.6,2345.5,0.001]
[1770069257344,12.99470769,2346.4,2345.5,0.001]
[1770069257742,12.99470769,2346.4,2345.3,0.001]
[1770069258048,12.99470769,2346.4,2344.3,3.05005997]
[1770069258049,0.01707942,2345.1,2344.5,0.001]
[1770069258262,13.88870769,2345.3,2344.5,0.001]
[1770069258460,15.27757846,2345.3,2344.5,0.001]
[1770069258830,16.3435733,2345.3,2344.5,0.001]
[1770069259053,13.01178711,2345.2,2344.5,0.001]
[1770069259973,0.01707942,2343.9,2343.4,1.13854546]
[1770069260133,0.01707942,2343.9,2343.4,1.36099699]
[1770069260337,0.01707942,2343.6,2343.3,0.001]
[1770069260557,0.01707942,2343.9,2343.3,1.06786969]
[1770069261046,12.47250181,2344.3,2343.3,0.001]
[1770069261945,12.47250181,2345.1,2343.3,12.47142442]
[1770069262145,14.43255443,2345.1,2343.5,12.47042442]
[1770069262743,13.36650181,2345.1,2343.5,12.47042442]
[1770069262939,13.36650181,2345.1,2343.6,1.06673493]
[1770069263144,14.4325588,2345.1,2343.6,13.53715935]
[1770069263346,12.47250181,2344.9,2343.7,1.86980991]
[1770069263545,12.47250181,2344.9,2343.6,1.06673493]
[1770069263966,12.47250181,2344.9,2343.6,13.53715935]
[1770069266773,2.93577776,2345.0,2343.8,12.47042442]
[1770069266774,1.86966013,2345.0,2343.8,12.47042442]
[1770069266943,12.47250181,2345.2,2343.8,12.47042442]
[1770069267146,12.47250181,2345.2,2343.9,13.53702282]
[1770069268449,1.0659044,2345.5,2343.9,13.53702282]
[1770069268776,12.47250181,2345.9,2344.1,12.47042442]
[1770069268777,13.5382368,2345.8,2344.1,12.47042442]
[1770069268956,12.47250181,2345.6,2344.2,1.24704244]
[1770069269159,12.47250181,2345.4,2344.2,1.24704244]
[1770069269503,12.47250181,2345.4,2343.8,12.47042442]
[1770069269979,12.47250181,2345.2,2343.8,1.06664252]
[1770069270364,12.47250181,2345.2,2343.6,1.06669955]
[1770069270984,0.894,2345.3,2343.5,0.894]
[1770069270985,12.47250181,2345.0,2343.5,0.894]
[1770069271309,12.47250181,2344.8,2343.5,14.4312046]
[1770069271480,12.47250181,2344.6,2343.6,1.86983987]
[1770069272899,12.47250181,2344.6,2343.6,1.87083987]
[1770069273096,0.0011,2344.5,2343.6,2.93753543]
[1770069274182,0.0011,2344.5,2343.6,1.87083987]
[1770069274582,0.0011,2344.5,2343.6,2.93757096]
[1770069274893,0.0011,2344.5,2343.7,1.63019954]
[1770069276595,12.47360181,2344.5,2343.7,1.63019954]
[1770069276794,12.47360181,2344.5,2343.6,0.001]
[1770069280807,0.0011,2344.5,2343.6,12.47142442]
[1770069281003,0.0011,2344.7,2343.6,12.47142442]
[1770069281004,0.0011,2344.7,2343.8,12.47042442]
[1770069281189,0.0011,2344.7,2344.1,12.47042442]
[1770069281389,0.0011,2344.7,2343.9,1.42887521]
[1770069281596,0.0011,2344.7,2344.0,0.90791462]
[1770069281890,0.0011,2344.7,2344.0,12.47042442]
[1770069282269,0.0011,2344.7,2344.1,0.90883817]
[1770069282470,0.0011,2344.7,2344.2,1.33792626]
[1770069283172,0.0011,2344.7,2344.2,2.40436732]
[1770069283773,0.0011,2344.7,2344.2,2.42144674]
[1770069284402,0.0011,2344.7,2344.3,0.91130498]
[1770069284706,0.0011,2344.7,2344.4,0.91130498]
[1770069284872,0.0011,2344.7,2344.4,0.33327517]
[1770069285067,0.0011,2344.7,2344.1,1.06649054]
[1770069285275,0.0011,2344.7,2344.2,0.91134858]
[1770069285597,0.0011,2344.5,2344.3,0.91134858]
[1770069285775,0.0011,2344.5,2344.4,0.91134858]
[1770069286371,0.0011,2344.7,2344.4,0.91134858]
[1770069286574,0.0011,2344.7,2344.5,0.91134858]
[1770069286801,0.0011,2344.7,2344.6,0.91134858]
[1770069287980,12.47250181,2345.3,2344.6,0.91134858]
[1770069288183,12.47250181,2345.3,2344.7,0.91134858]
[1770069288379,12.47250181,2345.3,2344.8,0.91134858]
[1770069288602,12.47250181,2345.3,2344.5,1.06629779]
[1770069288898,12.47250181,2345.3,2344.6,1.60085585]
[1770069289088,12.47250181,2345.3,2344.7,0.91512042]
[1770069289397,12.47250181,2345.3,2344.8,0.91512042]
[1770069289604,0.0011,2345.7,2344.9,0.91496671]
[1770069289803,0.0011,2345.7,2345.0,0.91496671]
[1770069289991,0.0011,2345.7,2345.1,0.91496671]
[1770069290305,0.0011,2345.7,2345.2,0.91496671]
[1770069290604,0.0011,2345.7,2345.3,0.91496671]
[1770069290817,0.0011,2345.7,2345.4,0.91496671]
[1770069291108,0.0011,2345.7,2345.0,1.52567725]
[1770069291302,0.0011,2345.7,2344.8,3.3451216]
[1770069291303,0.0011,2345.7,2345.1,0.91357034]
[1770069291504,0.0011,2345.7,2345.2,0.91357034]
[1770069291704,0.0011,2345.7,2345.3,0.91357034]
[1770069292003,0.0011,2345.7,2345.4,0.9130185]
[1770069292209,0.0011,2345.7,2345.1,0.24392476]
[1770069292408,0.0011,2345.7,2345.2,0.91257004]
[1770069292601,0.0011,2345.7,2345.3,0.91257004]
[1770069292799,0.0011,2345.7,2345.2,0.22225433]
[1770069292998,0.0011,2345.7,2345.3,0.91262405]
[1770069293198,0.0011,2345.7,2345.2,0.22225433]
[1770069293402,0.0011,2345.7,2345.3,0.91221773]
[1770069293710,0.0011,2345.7,2345.2,0.22225433]
[1770069293874,0.0011,2345.7,2345.3,0.91221255]
[1770069294078,0.0011,2345.7,2345.2,0.22225433]
[1770069294280,0.0011,2345.7,2345.3,0.9122302]
[1770069294510,0.0011,2345.7,2345.2,0.22225433]
[1770069294709,0.0011,2345.7,2345.2,1.28825471]
[1770069294906,0.0011,2345.7,2345.3,0.91187685]
[1770069295079,0.0011,2345.7,2345.2,0.22225433]
[1770069295491,0.0011,2345.7,2345.2,1.28826086]
[1770069295702,0.0011,2345.7,2345.2,0.22225433]
[1770069296011,0.0011,2345.7,2345.1,0.24392476]
[1770069296310,0.0011,2345.7,2345.2,0.91161665]
[1770069296613,0.0011,2345.7,2345.2,1.06599658]
[1770069297517,0.0011,2345.7,2345.1,1.30995243]
[1770069297726,0.0011,2345.7,2345.2,0.91111247]
[1770069297922,12.59630927,2347.0,2345.7,12.9109284]
[1770069298124,13.66151155,2347.0,2345.8,0.91087847]
[1770069298324,12.59630927,2347.0,2345.9,0.01707942]
[1770069298498,12.59630927,2347.0,2345.5,12.9109284]
[1770069298701,12.25893472,2346.7,2345.8,0.01707942]
[1770069300008,12.25893472,2346.7,2345.8,1.08281335]
[1770069300408,12.25893472,2346.7,2345.8,0.01707942]
[1770069301014,12.25893472,2346.7,2345.8,1.08281163]
[1770069301217,12.25893472,2346.7,2345.8,13.97666061]
[1770069301218,0.0011,2346.7,2345.8,13.97666061]
[1770069301431,0.0011,2346.7,2346.1,0.01707942]
[1770069301788,0.0011,2346.7,2346.1,1.08263817]
[1770069302090,12.25893472,2346.7,2345.9,2.88964561]
[1770069302288,12.25893472,2346.7,2346.0,0.01707942]
[1770069302496,12.25893472,2346.7,2346.0,1.08268773]
[1770069302693,0.0011,2346.7,2346.1,1.0655959]
[1770069303102,0.0011,2346.7,2346.1,1.06559327]
[1770069304017,0.0011,2346.7,2346.3,0.01707942]
[1770069304885,0.0011,2346.7,2346.1,1.06559327]
[1770069305100,0.0011,2346.7,2346.1,1.68780962]
[1770069305503,0.0011,2346.7,2346.1,1.70488904]
[1770069306222,0.0011,2346.7,2346.1,14.59873802]
[1770069306587,0.0011,2346.7,2346.4,0.01707942]
[1770069307989,0.0011,2346.7,2346.2,1.0826129]
[1770069308189,0.0011,2346.7,2346.3,1.66220874]
[1770069309009,0.0011,2346.7,2346.4,1.06544608]
[1770069309207,0.33847455,2347.0,2346.5,0.01707942]
[1770069309995,0.33847455,2347.0,2346.3,0.59671327]
[1770069309996,0.33847455,2347.0,2346.3,1.6792614]
[1770069310395,0.33847455,2347.0,2346.4,1.06545953]
[1770069310695,0.33847455,2347.0,2346.4,1.88352429]
[1770069310896,0.12641447,2347.0,2346.4,1.88352429]
[1770069311114,0.1244184,2347.0,2346.4,1.88352429]
[1770069311420,0.0011,2346.7,2346.4,2.9489844]
[1770069313224,0.0011,2346.7,2346.4,1.88352429]
[1770069313419,0.0011,2346.7,2346.5,0.35627894]
[1770069314802,0.0011,2346.7,2346.1,1.06556728]
[1770069315008,12.25893472,2346.7,2346.2,1.06555253]
[1770069315210,0.0011,2346.7,2346.3,1.06548546]
[1770069315608,0.0011,2346.7,2346.2,1.06551728]
[1770069315808,0.0011,2346.7,2346.3,0.53449067]
[1770069316614,0.0011,2346.7,2346.1,1.08264325]
[1770069316807,0.0011,2346.7,2346.2,0.9073414]
[1770069317004,0.0011,2346.7,2346.1,1.08264325]
[1770069317210,0.0011,2346.7,2346.2,0.90733849]
[1770069317525,0.0011,2346.7,2346.1,1.08264325]
[1770069317834,0.0011,2346.7,2346.2,0.90791063]
[1770069318032,0.0011,2346.7,2346.1,1.70666411]
[1770069318232,0.0011,2346.7,2346.2,1.97345294]
[1770069318454,0.0011,2346.7,2346.3,0.90791107]
[1770069320333,0.0011,2346.7,2346.3,1.97341125]
[1770069320517,0.0011,2346.7,2346.4,0.90791107]
[1770069321337,0.0011,2346.7,2346.4,0.92499049]
[1770069321642,0.0011,2346.7,2346.5,0.90934159]
[1770069321937,0.0011,2346.7,2346.4,0.01707942]
[1770069322113,0.0011,2346.7,2346.5,0.90933318]
[1770069322323,0.0011,2346.7,2346.5,0.23669996]
[1770069322528,0.0011,2346.7,2346.5,1.30211587]
[1770069322840,0.0011,2346.7,2346.5,0.23669996]
[1770069323337,0.0011,2346.7,2346.5,1.30210845]
[1770069323544,0.1244184,2347.0,2346.6,0.90978272]
[1770069323711,0.1244184,2347.0,2346.5,0.23669996]
[1770069323913,0.1244184,2347.0,2346.6,0.90978058]
[1770069324115,0.1244184,2347.0,2346.5,0.23669996]
[1770069324443,0.1244184,2347.0,2346.6,0.90977964]
[1770069324659,0.1244184,2347.0,2346.5,1.30211366]
[1770069324826,0.1244184,2347.0,2346.6,0.91042362]
[1770069325019,0.1244184,2347.0,2346.5,1.30211366]
[1770069325247,0.1244184,2347.0,2346.6,0.91041745]
[1770069325547,0.0011,2346.8,2346.7,0.91041745]
[1770069325725,0.0011,2346.8,2346.6,0.91041745]
[1770069325926,0.0011,2346.8,2346.7,0.91041745]
[1770069327438,0.0011,2347.1,2346.7,0.91041745]
[1770069327613,0.0011,2347.1,2346.8,0.91041745]
[1770069327939,0.0011,2347.1,2346.4,1.52567725]
[1770069327940,12.05001538,2347.1,2346.4,1.52567725]
[1770069328143,1.20500154,2347.0,2346.3,1.52667725]
[1770069328448,13.25391692,2347.0,2346.3,1.52667725]
[1770069329425,13.25391692,2347.0,2346.4,1.52567725]
[1770069332545,13.25391692,2347.0,2345.9,3.05005997]
[1770069332546,14.3191393,2347.0,2345.9,3.05005997]
[1770069332739,12.04891538,2346.8,2345.9,0.001]
[1770069334446,13.1142016,2346.8,2345.9,0.001]
[1770069336426,13.1142016,2346.8,2345.6,0.001]
[1770069336748,14.64956872,2346.8,2345.6,0.001]
[1770069337122,13.11421198,2346.8,2345.6,0.001]
[1770069337328,12.04891538,2346.6,2345.6,1.5347114]
[1770069337844,12.04891538,2346.6,2345.6,1.51763198]
[1770069338060,13.11432572,2346.6,2345.6,0.001]
[1770069339547,13.11432572,2346.6,2345.5,2.14249837]
[1770069339871,13.1142898,2346.6,2345.5,14.0994532]
[1770069340168,12.04891538,2346.6,2345.6,11.97403425]
[1770069340535,12.04891538,2346.6,2345.9,0.001]
[1770069340717,1.32539169,2346.5,2345.9,0.001]
[1770069341322,13.37430707,2346.5,2345.5,2.14249837]
[1770069342151,14.43975484,2346.5,2345.5,2.14249837]
[1770069342455,14.43972487,2346.5,2345.5,2.14249837]
[1770069342676,12.04891538,2346.3,2345.5,2.14249837]
[1770069344229,12.04891538,2346.1,2345.5,2.14249837]
[1770069348547,0.894,2346.2,2345.5,2.14249837]
[1770069349364,12.04891538,2346.3,2345.5,2.14249837]
[1770069349365,12.94291538,2346.3,2345.5,2.14249837]
[1770069349552,14.00843332,2346.3,2345.5,2.14249837]
[1770069349870,11.95618195,2346.1,2345.5,2.14249837]
[1770069351244,13.02178073,2346.1,2345.0,0.894]
[1770069352161,13.02178073,2346.1,2344.9,0.001]
[1770069353471,13.02178073,2346.1,2345.7,0.001]
[1770069353636,12.40914188,2345.9,2345.7,0.001]
[1770069355943,13.47483901,2345.9,2345.7,0.001]
[1770069356167,12.40914188,2345.9,2345.7,0.001]
[1770069356463,13.47484111,2345.9,2345.7,0.001]
[1770069356838,13.30314188,2345.8,2345.7,0.001]
[1770069357037,14.62853357,2345.8,2345.7,0.001]
[1770069358870,14.62853357,2345.8,2345.5,0.001]
[1770069359062,14.62853357,2345.8,2344.9,12.26785879]
[1770069360045,14.62853357,2345.8,2344.9,13.33400206]
[1770069360244,14.62853357,2345.8,2344.9,12.26785879]
[1770069360550,14.62853357,2345.8,2345.0,1.33340133]
[1770069361540,0.894,2345.8,2345.1,12.26685879]
[1770069361773,0.52333643,2346.5,2345.1,12.26685879]
[1770069361774,12.40914188,2346.1,2345.1,12.26685879]
[1770069362174,12.40914188,2346.1,2345.0,1.33340133]
[1770069362470,12.40914188,2345.9,2344.9,0.001]
[1770069363382,12.40914188,2345.7,2344.9,0.001]
[1770069363570,13.30314188,2345.6,2344.9,0.001]
[1770069365978,0.894,2345.6,2344.9,12.26785879]
[1770069366866,12.40914188,2346.0,2344.9,12.26785879]
[1770069367070,13.1726013,2346.0,2345.1,12.26685879]
[1770069368081,13.1726013,2346.0,2345.1,12.26785879]
[1770069368448,0.0011,2345.9,2345.1,12.26785879]
[1770069370562,12.41024188,2345.9,2345.1,12.26785879]
[1770069370762,13.72772201,2345.9,2345.1,13.72403425]
[1770069374594,12.40914188,2345.7,2345.1,0.001]
[1770069374891,12.40914188,2345.5,2345.1,0.001]
[1770069376470,0.894,2345.6,2345.1,0.001]
[1770069378384,0.0011,2345.9,2345.1,12.26785879]
[1770069378693,0.0011,2345.9,2345.1,13.33390637]
[1770069380697,0.0011,2345.4,2345.1,13.33390637]
[1770069380990,0.0011,2345.6,2345.2,2.52495836]
[1770069381190,0.0011,2345.6,2345.1,0.001]
[1770069381191,0.01707942,2345.5,2345.1,0.001]
[1770069382171,0.0011,2345.6,2345.1,0.001]
[1770069385299,11.95046143,2345.6,2345.1,0.001]
[1770069385484,0.0011,2345.6,2345.1,0.001]
[1770069388188,1.19614614,2345.6,2345.1,0.001]
[1770069390202,13.14550757,2345.6,2345.1,0.001]
[1770069392583,13.14550757,2345.6,2345.3,0.001]
[1770069393010,1.19614614,2345.6,2345.3,0.001]
[1770069395715,1.19614614,2345.6,2345.1,0.001]
[1770069395716,14.21133871,2345.6,2345.1,0.001]
[1770069395920,13.01629257,2345.6,2345.1,0.001]
[1770069397915,11.94936143,2345.4,2345.1,0.001]
[1770069398889,0.894,2345.5,2345.1,0.001]
[1770069399293,13.90924486,2345.5,2345.1,0.001]
[1770069399493,1.39103449,2345.4,2345.1,0.001]
[1770069401822,2.28503449,2345.4,2345.1,0.001]
[1770069403620,11.94936143,2345.3,2344.9,0.001]
[1770069405205,11.94936143,2345.2,2344.7,0.001]
[1770069405405,11.94936143,2345.2,2344.6,0.001]
[1770069405609,4.88632598,2345.4,2344.6,0.001]
[1770069405610,20.77449951,2345.1,2344.6,0.001]
[1770069405811,0.894,2345.0,2344.6,0.001]
[1770069406207,7.65433018,2344.7,2344.1,12.53542057]
[1770069406433,12.84336143,2344.6,2343.9,0.001]
[1770069407045,12.84336143,2344.6,2343.7,12.53642057]
[1770069407046,7.65433018,2344.0,2343.7,0.001]
[1770069407237,0.894,2343.9,2343.6,0.001]
[1770069407532,13.72941971,2344.5,2343.6,0.001]
[1770069407533,0.894,2344.0,2343.6,0.001]
[1770069408920,13.01577874,2344.3,2343.6,0.001]
[1770069409120,0.894,2344.2,2343.6,0.001]
[1770069409327,1.27750625,2344.1,2343.6,0.001]
[1770069410318,0.894,2344.4,2343.7,12.5374556]
[1770069410913,0.894,2344.5,2343.7,12.5374556]
[1770069416639,0.894,2344.5,2343.6,0.001]
[1770069416640,12.96211575,2344.4,2343.6,0.001]
[1770069416809,2.90410918,2344.5,2343.6,12.5384556]
[1770069417010,14.92245144,2344.5,2343.6,12.5384556]
[1770069417253,0.01707942,2343.8,2343.6,12.5384556]
[1770069417812,0.01707942,2344.1,2343.6,12.5384556]
[1770069418214,0.01707942,2343.8,2343.6,12.5384556]
[1770069420840,0.01707942,2343.8,2343.6,0.001]
[1770069424555,0.01707942,2344.3,2343.6,12.5384556]
[1770069424736,0.01707942,2344.0,2343.6,12.5384556]
[1770069424938,0.01707942,2344.0,2343.6,1.25494556]
[1770069425519,0.01707942,2343.7,2343.6,0.001]
[1770069427453,0.01707942,2344.0,2343.6,0.001]
[1770069427656,0.01707942,2344.0,2343.6,12.5384556]
[1770069430626,0.01707942,2344.0,2343.8,0.001]
[1770069431364,0.0011,2344.5,2343.9,12.5374556]
[1770069431655,0.01707942,2344.1,2343.9,13.79130116]
[1770069431856,0.01707942,2344.0,2343.9,1.25384556]
[1770069432928,0.0011,2344.5,2343.9,13.79130116]
[1770069433139,0.01707942,2344.4,2343.9,13.79130116]
[1770069439127,0.0011,2344.5,2343.9,13.79130116]
[1770069439332,0.01707942,2344.4,2344.1,12.5374556]
[1770069439532,0.0011,2344.5,2344.1,12.5374556]
[1770069439762,0.01707942,2344.4,2344.1,12.5374556]
[1770069440142,0.0011,2344.5,2344.1,12.5374556]
[1770069443163,0.0011,2344.3,2344.1,12.5374556]
[1770069443459,0.0011,2344.5,2344.2,14.39936608]
[1770069450362,0.0011,2344.7,2344.3,12.89037823]
[1770069450567,0.01707942,2344.8,2344.2,1.50898785]
[1770069450768,12.83932072,2344.8,2344.2,1.50898785]
[1770069451076,12.8222413,2344.8,2344.2,1.50898785]
[1770069451240,14.87077025,2344.8,2344.1,12.89037823]
[1770069451637,14.87077025,2344.8,2344.1,13.95688452]
[1770069451638,2.04852895,2344.8,2344.1,13.95688452]
[1770069451839,12.8233413,2345.0,2344.1,12.89037823]
[1770069453047,0.0011,2345.4,2344.6,12.89037823]
[1770069453561,0.0011,2345.4,2344.8,12.89037823]
[1770069453757,0.0011,2345.4,2344.9,14.2860395]
[1770069458463,12.8233413,2345.4,2344.5,13.78437823]
[1770069460070,12.8233413,2345.4,2344.4,1.06636654]
[1770069460071,12.8222413,2345.0,2344.3,0.001]
[1770069460282,0.0011,2345.4,2344.5,12.89037823]
[1770069460570,12.8233413,2345.4,2344.5,12.89037823]
[1770069460873,12.8233413,2345.4,2344.6,14.94561088]
[1770069464471,12.8233413,2345.4,2344.4,12.89037823]
[1770069465081,0.0011,2345.4,2344.7,12.89037823]
[1770069467493,0.0011,2345.4,2344.6,7.66194824]
[1770069467494,0.0011,2345.4,2344.8,12.89137823]
[1770069467691,0.0011,2345.2,2344.8,12.89137823]
[1770069467892,0.0011,2345.2,2344.9,1.28913782]
[1770069470404,0.0011,2345.2,2344.8,12.89137823]
[1770069472776,12.58676861,2345.2,2344.8,0.001]
[1770069472978,12.58676861,2345.2,2344.3,1.14463184]
[1770069473194,12.58676861,2345.2,2344.3,0.001]
[1770069473195,12.58566861,2345.1,2344.3,0.001]
[1770069473393,12.58566861,2344.9,2344.3,0.001]
[1770069475316,12.58566861,2344.9,2344.3,1.14463184]
[1770069480499,12.58566861,2344.9,2344.3,0.001]
[1770069480886,12.58566861,2344.9,2344.5,0.001]
[1770069494635,12.58566861,2344.9,2344.7,0.001]
[1770069494835,0.5369707,2344.8,2344.7,0.001]
[1770069497922,13.12263931,2344.8,2344.5,0.001]
[1770069498232,0.5369707,2344.8,2344.5,0.001]
[1770069507625,0.5369707,2344.8,2344.7,0.001]
[1770069508151,0.5380707,2344.8,2344.7,0.001]
[1770069509244,13.11588854,2344.8,2344.7,0.001]
[1770069510354,13.11588854,2344.8,2344.3,0.001]
[1770069510649,12.57781784,2344.6,2344.0,0.001]
[1770069510828,12.57781784,2344.4,2344.0,0.001]
[1770069511226,12.57781784,2344.3,2343.8,0.001]
[1770069511634,13.73155509,2344.3,2343.8,0.001]
[1770069511836,12.57781784,2344.1,2343.7,0.53398887]
[1770069512036,13.47181784,2344.0,2343.6,0.001]
[1770069512463,13.47181784,2344.0,2343.5,0.001]
[1770069513668,0.894,2344.0,2343.5,12.7490907]
[1770069513831,12.57781784,2344.4,2343.6,12.7480907]
[1770069514035,0.894,2344.3,2343.6,14.78887949]
[1770069514336,13.47181784,2344.3,2343.6,2.04078879]
[1770069514549,13.47181784,2344.3,2343.5,12.7490907]
[1770069514859,0.894,2344.3,2343.5,12.7490907]
[1770069515766,13.15518121,2344.5,2343.6,12.7480907]
[1770069515966,13.15518121,2344.5,2344.1,12.7480907]
[1770069515967,0.57736337,2344.5,2344.1,12.7480907]
[1770069516137,0.0011,2344.8,2344.0,7.65779723]
[1770069516138,0.8951,2344.8,2344.2,12.7480907]
[1770069516334,0.8951,2344.8,2344.2,14.78867949]
[1770069516536,0.0011,2344.8,2344.3,12.7480907]
[1770069516867,0.0011,2344.8,2344.3,13.81449748]
[1770069517241,0.0011,2345.0,2344.6,12.7480907]
[1770069517440,0.0011,2345.2,2344.7,12.7480907]
[1770069518561,0.0011,2345.2,2344.7,14.02289977]
[1770069519754,0.51754138,2345.3,2344.7,14.02289977]
[1770069519966,0.51754138,2345.3,2344.8,12.7480907]
[1770069519967,0.46754138,2345.3,2344.8,12.7480907]
[1770069520366,0.0011,2345.0,2344.8,12.7480907]
[1770069520677,0.0011,2345.0,2344.9,1.40228998]
[1770069520881,0.0011,2345.0,2344.7,1.27480907]
[1770069521045,0.0011,2345.0,2344.3,12.7480907]
[1770069521241,0.0011,2345.0,2344.5,12.7480907]
[1770069523874,0.41974138,2345.3,2344.5,12.7480907]
[1770069524672,12.99755922,2345.3,2344.5,12.7480907]
[1770069524872,12.99755922,2345.3,2344.3,12.7480907]
[1770069525071,12.99755922,2345.3,2344.3,14.99273837]
[1770069525072,1.29986592,2345.2,2344.3,14.99273837]
[1770069527462,13.87768376,2345.2,2344.3,14.99273837]
[1770069530688,0.41974138,2345.3,2344.3,14.99273837]
[1770069530689,0.41974138,2345.3,2344.4,12.01256885]
[1770069530990,0.41974138,2345.3,2344.6,12.01256885]
[1770069532083,12.39952526,2345.3,2344.4,12.01256885]
[1770069532453,0.0011,2345.0,2344.4,12.01256885]
[1770069532653,0.0011,2345.0,2344.6,12.01256885]
[1770069532998,0.0011,2345.0,2344.7,13.21382573]
[1770069533387,11.98088388,2345.0,2344.3,2.24464767]
[1770069533559,11.97978388,2344.7,2344.0,1.25281586]
[1770069533763,11.97978388,2344.9,2344.0,13.26538471]
[1770069534165,0.8951,2345.0,2344.0,13.26538471]